bitfinex-derivatives/quotes_BTCF0:USTF0_20250429
["timestamp","ask_amount","ask_price","bid_price","bid_amount"]
[1745959432204,0.6673621,94915.0,94914.0,0.01096418]
[1745959432906,0.6673621,94915.0,94914.0,0.01196418]
[1745959433208,0.0959,94915.0,94914.0,0.22262848]
[1745959433510,0.0959,94915.0,94914.0,0.21962848]
[1745959433698,0.0959,94915.0,94914.0,0.22062848]
[1745959434507,0.0959,94915.0,94914.0,0.22162848]
[1745959435999,0.0969,94915.0,94914.0,0.22362848]
[1745959436607,0.0979,94915.0,94914.0,0.22662848]
[1745959439114,0.0969,94915.0,94914.0,0.22262848]
[1745959439414,0.0979,94915.0,94914.0,0.22662848]
[1745959439704,0.0666,94915.0,94914.0,0.22662848]
[1745959440508,0.0656,94915.0,94914.0,0.22262848]
[1745959440714,0.0666,94915.0,94914.0,0.22662848]
[1745959443614,0.0312,94925.0,94924.0,0.2106421]
[1745959444309,0.0312,94925.0,94924.0,0.2423421]
[1745959444713,0.01585928,94925.0,94924.0,0.2423421]
[1745959445703,0.01585928,94925.0,94924.0,0.2126421]
[1745959445903,0.01585928,94925.0,94924.0,0.2146421]
[1745959446704,0.01585928,94925.0,94924.0,0.2454421]
[1745959446904,0.07655928,94925.0,94924.0,0.2474421]
[1745959447418,0.07655928,94925.0,94924.0,0.2454421]
[1745959447717,0.07655928,94925.0,94924.0,0.2474421]
[1745959448417,0.0607,94925.0,94924.0,0.2474421]
[1745959448919,0.0607,94925.0,94924.0,0.2434421]
[1745959449105,0.0607,94925.0,94924.0,0.2146421]
[1745959450409,0.0607,94925.0,94924.0,0.2126421]
[1745959450608,0.0607,94925.0,94924.0,0.2460421]
[1745959451913,0.0607,94925.0,94924.0,0.2440421]
[1745959452120,0.0607,94925.0,94924.0,0.2460421]
[1745959452506,0.0607,94925.0,94924.0,0.2440421]
[1745959452710,0.0607,94925.0,94924.0,0.2765421]
[1745959452915,0.0607,94925.0,94924.0,0.2745421]
[1745959453214,0.0607,94925.0,94924.0,0.2765421]
[1745959454212,0.3608,94947.0,94939.0,0.2106089]
[1745959454420,0.4144,94953.0,94939.0,0.2106089]
[1745959454734,0.0015,94940.0,94939.0,0.22618322]
[1745959455311,0.0015,94940.0,94939.0,0.25828322]
[1745959455507,0.0015,94940.0,94939.0,0.29018322]
[1745959455713,0.0035,94940.0,94939.0,0.29018322]
[1745959456317,0.0045,94940.0,94939.0,0.29018322]
[1745959456825,0.0035,94940.0,94939.0,0.29018322]
[1745959458008,0.0035,94940.0,94939.0,0.07955587]
[1745959458421,0.0035,94940.0,94939.0,0.25806477]
[1745959458622,0.0363,94940.0,94939.0,0.04745587]
[1745959458826,0.0363,94940.0,94939.0,0.25806477]
[1745959459026,0.067,94940.0,94939.0,0.25806477]
[1745959459913,0.067,94940.0,94939.0,0.04740613]
[1745959460213,0.067,94940.0,94939.0,0.25801503]
[1745959460623,0.067,94940.0,94939.0,0.2425089]
[1745959460826,0.067,94940.0,94939.0,0.0319]
[1745959461024,0.2776066,94940.0,94939.0,0.0319]
[1745959461523,0.2776066,94940.0,94939.0,0.2425089]
[1745959461725,0.2776066,94940.0,94939.0,0.0319]
[1745959462628,0.210613,94938.0,94937.0,0.2106133]
[1745959462827,0.210613,94938.0,94937.0,0.2415133]
[1745959463326,0.2776087,94940.0,94938.0,0.2106107]
[1745959463627,0.2106089,94939.0,94938.0,0.2106107]
[1745959464328,0.2750089,94939.0,94938.0,0.2106107]
[1745959467331,0.2750089,94939.0,94934.0,0.0316]
[1745959467332,0.0526528,94938.0,94928.0,0.06564]
[1745959467525,0.0526528,94938.0,94933.0,0.2106217]
[1745959467526,0.3608,94934.0,94933.0,0.2106217]
[1745959467826,0.57142,94934.0,94933.0,0.2106217]
[1745959468014,0.423,94934.0,94933.0,0.2106217]
[1745959468420,0.63362,94934.0,94933.0,0.2106217]
[1745959468621,0.423,94934.0,94933.0,0.2106217]
[1745959468821,0.423,94934.0,94933.0,0.2417217]
[1745959469025,0.423,94934.0,94933.0,0.2427217]
[1745959469625,0.423,94934.0,94933.0,0.2437217]
[1745959469832,0.3608,94934.0,94933.0,0.2437217]
[1745959472638,0.031,94938.0,94937.0,0.2106133]
[1745959472841,0.0015,94940.0,94939.0,0.2106089]
[1745959473142,0.2121066,94940.0,94939.0,0.2106089]
[1745959473937,0.2131066,94940.0,94939.0,0.2717089]
[1745959474146,0.2131066,94940.0,94939.0,0.0611]
[1745959474738,0.2131066,94940.0,94939.0,0.0927]
[1745959475138,0.2141066,94940.0,94939.0,0.0927]
[1745959476640,0.2141066,94940.0,94939.0,0.3033089]
[1745959476847,0.2141066,94940.0,94939.0,0.0927]
[1745959477041,0.2141066,94940.0,94939.0,0.0611]
[1745959477745,0.2141066,94940.0,94939.0,0.0305]
[1745959481249,0.2141066,94940.0,94939.0,0.2411089]
[1745959485047,0.2141066,94940.0,94939.0,0.0305]
[1745959486339,0.2141066,94940.0,94939.0,0.0619]
[1745959486539,0.5749066,94940.0,94939.0,0.0619]
[1745959488349,0.2141066,94940.0,94939.0,0.0619]
[1745959488853,0.5749066,94940.0,94939.0,0.0619]
[1745959493849,0.5749066,94940.0,94939.0,0.2725089]
[1745959496352,0.2141066,94940.0,94939.0,0.2725089]
[1745959496556,0.5749066,94940.0,94939.0,0.2725089]
[1745959500360,0.5749066,94940.0,94939.0,0.0619]
[1745959500961,0.5749066,94940.0,94939.0,0.2725089]
[1745959509862,0.5749066,94940.0,94939.0,0.28808083]
[1745959510867,0.5749066,94940.0,94939.0,0.2725089]
[1745959511368,0.5749066,94940.0,94939.0,0.0619]
[1745959511963,0.5749066,94940.0,94939.0,0.2725089]
[1745959512268,0.5749066,94940.0,94939.0,0.0619]
[1745959515371,0.5749066,94940.0,94939.0,0.2725089]
[1745959520575,0.5749066,94940.0,94939.0,0.0619]
[1745959520873,0.5749066,94940.0,94939.0,0.2725089]
[1745959523476,0.5749066,94940.0,94939.0,0.0619]
[1745959524162,0.5749066,94940.0,94939.0,0.2725089]
[1745959525577,0.5749066,94940.0,94939.0,0.0619]
[1745959530779,0.5749066,94940.0,94939.0,0.0305]
[1745959530977,0.5739066,94940.0,94939.0,0.0305]
[1745959531475,0.6066066,94940.0,94939.0,0.0305]
[1745959533174,0.6056066,94940.0,94939.0,0.0305]
[1745959535778,0.6056066,94940.0,94939.0,0.03825942]
[1745959537582,0.6056066,94940.0,94939.0,0.24886832]
[1745959537882,0.6056066,94940.0,94939.0,0.27996832]
[1745959538688,0.3623,94940.0,94939.0,0.27996832]
[1745959538974,0.07943792,94950.0,94939.0,0.27996832]
[1745959538975,0.07943792,94950.0,94949.0,0.2105867]
[1745959539181,0.07943792,94950.0,94949.0,0.2759867]
[1745959539370,0.07943792,94950.0,94949.0,0.6367867]
[1745959539981,0.08243792,94950.0,94949.0,0.6377867]
[1745959541578,0.08443792,94950.0,94949.0,0.6377867]
[1745959541983,0.005,94950.0,94949.0,0.6377867]
[1745959544880,0.07943792,94970.0,94949.0,0.78252]
[1745959545080,0.07943792,94970.0,94969.0,0.2105423]
[1745959545279,0.07943792,94981.0,94974.0,0.2105313]
[1745959545483,0.0015,94981.0,94980.0,0.210518]
[1745959545685,0.10591723,94988.0,94985.0,0.2105069]
[1745959545876,0.10591723,94988.0,94985.0,0.2759069]
[1745959546483,0.10591723,94988.0,94985.0,0.3404069]
[1745959546888,0.003,94986.0,94985.0,0.35090608]
[1745959548279,0.004,94986.0,94985.0,0.35090608]
[1745959549593,0.004,94986.0,94985.0,0.35086608]
[1745959552693,0.004,94986.0,94985.0,0.07499918]
[1745959553005,0.2145047,94986.0,94985.0,0.09696]
[1745959553186,0.2145047,94986.0,94985.0,0.06536]
[1745959553390,0.2105113,94983.0,94982.0,0.0303]
[1745959554185,0.2414113,94983.0,94982.0,0.0303]
[1745959554797,0.2424113,94983.0,94982.0,0.0303]
[1745959554994,0.2434113,94983.0,94982.0,0.0303]
[1745959555690,0.2434113,94983.0,94982.0,0.2408135]
[1745959558595,0.2434113,94983.0,94982.0,0.0303]
[1745959559486,0.2434113,94983.0,94982.0,0.2408135]
[1745959560187,0.2434113,94983.0,94982.0,0.0303]
[1745959560995,0.2434113,94983.0,94982.0,0.2408135]
[1745959561291,0.2434113,94983.0,94982.0,0.25624367]
[1745959562089,0.2434113,94983.0,94982.0,0.01543017]
[1745959562286,0.388184,94983.0,94962.0,0.0658]
[1745959562492,0.2105534,94964.0,94963.0,0.01545296]
[1745959563296,0.2105645,94959.0,94958.0,0.2428666]
[1745959563497,0.5713645,94959.0,94958.0,0.2428666]
[1745959564189,0.6354645,94959.0,94958.0,0.2428666]
[1745959564393,0.6354645,94959.0,94958.0,0.2438666]
[1745959564591,0.6354645,94959.0,94958.0,0.2448666]
[1745959564988,0.6354645,94959.0,94958.0,0.0343]
[1745959565184,0.6354645,94959.0,94958.0,0.0333]
[1745959565383,0.6354645,94959.0,94958.0,0.0343]
[1745959566798,0.6354645,94959.0,94958.0,0.0674]
[1745959567494,0.6354645,94959.0,94958.0,0.0664]
[1745959567698,0.6354645,94959.0,94958.0,0.0684]
[1745959567899,0.6354645,94959.0,94958.0,0.1016]
[1745959568290,0.6354645,94959.0,94958.0,0.1006]
[1745959569600,0.6354645,94959.0,94958.0,0.0986]
[1745959569798,0.6354645,94959.0,94958.0,0.1006]
[1745959570191,0.6354645,94959.0,94958.0,0.1016]
[1745959571298,0.0526356,94969.0,94958.0,0.1006]
[1745959571600,0.2105559,94965.0,94964.0,0.263184]
[1745959573692,0.2105559,94965.0,94964.0,0.2105462]
[1745959573893,0.2105645,94959.0,94958.0,0.3081658]
[1745959574688,0.2719645,94959.0,94958.0,0.3081658]
[1745959575198,0.2719645,94959.0,94958.0,0.3091658]
[1745959575800,0.2719645,94959.0,94958.0,0.3101658]
[1745959575989,0.2719645,94959.0,94958.0,0.0996]
[1745959576189,0.6327645,94959.0,94958.0,0.3101667]
[1745959579001,0.6327645,94959.0,94958.0,0.0996]
[1745959584206,0.6327645,94959.0,94958.0,0.3101667]
[1745959584798,0.6327645,94959.0,94958.0,0.0996]
[1745959585308,0.6327645,94959.0,94958.0,0.3101667]
[1745959586407,0.6327645,94959.0,94958.0,0.0996]
[1745959587113,0.5713645,94959.0,94958.0,0.3101667]
[1745959588601,0.0526397,94962.0,94960.0,0.2105601]
[1745959588801,0.2631976,94962.0,94961.0,0.2722601]
[1745959590997,0.2631976,94962.0,94961.0,0.2742601]
[1745959592009,0.2631976,94962.0,94961.0,0.2762601]
[1745959593412,0.2631976,94962.0,94961.0,0.28980306]
[1745959593712,0.2631976,94962.0,94961.0,0.29180306]
[1745959594109,0.2631976,94962.0,94961.0,0.28980306]
[1745959594302,0.2631976,94962.0,94961.0,0.29180306]
[1745959595607,0.2631976,94962.0,94961.0,0.28980306]
[1745959595917,0.2631976,94962.0,94961.0,0.29280306]
[1745959596311,0.2631976,94962.0,94961.0,0.29080306]
[1745959596504,0.2631976,94962.0,94961.0,0.29280306]
[1745959597213,0.2631976,94962.0,94961.0,0.2928498]
[1745959597416,0.2631976,94962.0,94961.0,0.2772601]
[1745959598412,0.2631976,94962.0,94961.0,0.29285083]
[1745959599814,0.2631976,94962.0,94961.0,0.28985083]
[1745959600021,0.2631976,94962.0,94961.0,0.29285083]
[1745959600830,0.2631976,94962.0,94961.0,0.29185083]
[1745959601516,0.2631976,94962.0,94961.0,0.08129073]
[1745959601812,0.2631976,94962.0,94961.0,0.05019073]
[1745959602503,0.2631976,94962.0,94961.0,0.0326]
[1745959602715,0.2631976,94962.0,94961.0,0.0346]
[1745959604509,0.2631976,94962.0,94961.0,0.0326]
[1745959604815,0.2631976,94962.0,94961.0,0.0346]
[1745959605416,0.2631976,94962.0,94961.0,0.0336]
[1745959605612,0.2631976,94962.0,94961.0,0.0316]
[1745959605813,0.2631976,94962.0,94961.0,0.0326]
[1745959607725,0.2631976,94962.0,94961.0,0.2431601]
[1745959609226,0.2631976,94962.0,94961.0,0.2421601]
[1745959609525,0.2631976,94962.0,94961.0,0.2431601]
[1745959620743,0.2631976,94962.0,94961.0,0.002]
[1745959620945,0.2105667,94958.0,94957.0,0.00157965]
[1745959621739,0.2426667,94958.0,94957.0,0.00157965]
[1745959622650,0.2426667,94958.0,94957.0,0.00357965]
[1745959623951,0.2426667,94958.0,94957.0,0.03617965]
[1745959624142,0.2436667,94958.0,94957.0,0.03417965]
[1745959624350,0.2446667,94958.0,94957.0,0.24474855]
[1745959626156,0.2446667,94958.0,94957.0,0.03417965]
[1745959631744,0.2446667,94958.0,94957.0,0.06517965]
[1745959634245,0.2436667,94958.0,94957.0,0.06517965]
[1745959634446,0.2446667,94958.0,94957.0,0.06517965]
[1745959641054,0.6054667,94958.0,94957.0,0.06517965]
[1745959648566,0.6054667,94958.0,94939.0,0.0181795]
[1745959648567,0.2105978,94944.0,94939.0,0.0181795]
[1745959648864,0.5713978,94944.0,94940.0,0.0626]
[1745959649560,0.6317978,94944.0,94940.0,0.0626]
[1745959649956,0.6317978,94944.0,94943.0,0.00357982]
[1745959650357,0.6317978,94944.0,94943.0,0.00557982]
[1745959651464,0.6317978,94944.0,94943.0,0.00457982]
[1745959652165,0.6317978,94944.0,94943.0,0.00257982]
[1745959653264,0.6337978,94944.0,94943.0,0.00257982]
[1745959653464,0.6347978,94944.0,94943.0,0.00157982]
[1745959659157,0.6327978,94944.0,94943.0,0.00157982]
[1745959659364,0.6347978,94944.0,94943.0,0.00157982]
[1745959659558,0.6034978,94944.0,94943.0,0.00157982]
[1745959659767,0.6044978,94944.0,94943.0,0.00157982]
[1745959660781,0.6024978,94944.0,94943.0,0.00157982]
[1745959660958,0.6034978,94944.0,94943.0,0.00157982]
[1745959661571,0.6024978,94944.0,94943.0,0.00157982]
[1745959662272,0.6014978,94944.0,94943.0,0.00157982]
[1745959665876,0.2106044,94941.0,94940.0,0.0629]
[1745959668273,0.2106044,94941.0,94940.0,0.0639]
[1745959668568,0.46671723,94958.0,94948.0,0.2105889]
[1745959668774,0.2105816,94952.0,94948.0,0.2105889]
[1745959668972,0.2105858,94950.0,94948.0,0.2105889]
[1745959669380,0.0526427,94957.0,94948.0,0.2105889]
[1745959669675,0.2105846,94950.0,94948.0,0.2105889]
[1745959669865,0.4154,94949.0,94948.0,0.2105889]
[1745959670474,0.4164,94949.0,94948.0,0.2105889]
[1745959671179,0.4154,94949.0,94948.0,0.2105889]
[1745959671478,0.4144,94949.0,94948.0,0.2125889]
[1745959671683,0.6249867,94949.0,94948.0,0.2125889]
[1745959672679,0.2105867,94949.0,94948.0,0.2125889]
[1745959676473,0.2105867,94949.0,94948.0,0.002]
[1745959676978,0.2105867,94949.0,94948.0,0.2125889]
[1745959700480,0.2412867,94949.0,94948.0,0.002]
[1745959701581,0.2412867,94949.0,94943.0,0.0526499]
[1745959701582,0.2106,94943.0,94939.0,0.00775942]
[1745959701786,0.5714,94943.0,94939.0,0.00775942]
[1745959701988,0.2106066,94940.0,94939.0,0.00775942]
[1745959702182,0.2106244,94932.0,94931.0,0.06516]
[1745959702691,0.2106266,94931.0,94930.0,0.2727287]
[1745959702888,0.2421266,94931.0,94930.0,0.2727287]
[1745959703289,0.2421266,94931.0,94930.0,0.28065414]
[1745959704396,0.2632706,94938.0,94937.0,0.2106133]
[1745959708396,0.2632706,94938.0,94937.0,0.2116133]
[1745959708898,0.2632706,94938.0,94937.0,0.2136133]
[1745959709995,0.2632706,94938.0,94937.0,0.2146133]
[1745959710586,0.2632706,94938.0,94937.0,0.2126133]
[1745959710998,0.2632706,94938.0,94937.0,0.2136133]
[1745959711397,0.2632706,94938.0,94937.0,0.2146133]
[1745959712489,0.2632706,94938.0,94937.0,0.2126133]
[1745959712802,0.2425097,94940.0,94939.0,0.2106089]
[1745959713393,0.2106097,94940.0,94939.0,0.2106089]
[1745959713998,0.2409097,94940.0,94939.0,0.2106089]
[1745959714406,0.2409097,94940.0,94939.0,0.2116089]
[1745959714892,0.2409097,94940.0,94939.0,0.2126089]
[1745959715093,0.2409097,94940.0,94939.0,0.2450089]
[1745959715907,0.2409097,94940.0,94939.0,0.2440089]
[1745959716097,0.2409097,94940.0,94939.0,0.2450089]
[1745959716709,0.2409097,94940.0,94939.0,0.2766089]
[1745959718605,0.2106097,94940.0,94939.0,0.2766089]
[1745959719309,0.2429097,94940.0,94939.0,0.2766089]
[1745959729205,0.2761097,94940.0,94939.0,0.2766089]
[1745959731005,0.6369097,94940.0,94939.0,0.2766089]
[1745959733809,0.6369097,94940.0,94939.0,0.066]
[1745959734914,0.6369097,94940.0,94939.0,0.065]
[1745959735110,0.6369097,94940.0,94939.0,0.066]
[1745959735708,0.6369097,94940.0,94939.0,0.065]
[1745959737415,0.2761097,94940.0,94939.0,0.065]
[1745959737612,0.6369097,94940.0,94939.0,0.065]
[1745959738313,0.6369097,94940.0,94939.0,0.066]
[1745959738918,0.6369097,94940.0,94939.0,0.065]
[1745959741609,0.6369097,94940.0,94939.0,0.064]
[1745959741811,0.2106266,94931.0,94920.0,0.4134625]
[1745959742116,0.2106266,94931.0,94930.0,0.00792544]
[1745959742423,0.2106288,94930.0,94929.0,0.0317]
[1745959743126,0.2106288,94930.0,94929.0,0.0636]
[1745959744221,0.2106288,94930.0,94929.0,0.0656]
[1745959745017,0.2106288,94930.0,94929.0,0.0676]
[1745959745419,0.2427288,94930.0,94929.0,0.2782311]
[1745959746813,0.2427288,94930.0,94929.0,0.28609358]
[1745959747713,0.2427288,94930.0,94929.0,0.28409358]
[1745959748022,0.2427288,94930.0,94929.0,0.28509358]
[1745959748611,0.0321,94930.0,94929.0,0.28509358]
[1745959748814,0.2427288,94930.0,94929.0,0.28509358]
[1745959749214,0.2427288,94930.0,94929.0,0.28409358]
[1745959749522,0.2427288,94930.0,94929.0,0.28609358]
[1745959750924,0.6035288,94930.0,94929.0,0.01186248]
[1745959751221,0.6035288,94930.0,94925.0,0.00105346]
[1745959751222,0.2106377,94926.0,94925.0,0.00105346]
[1745959752015,0.25295222,94926.0,94925.0,0.00105346]
[1745959752210,0.2421377,94926.0,94925.0,0.00105346]
[1745959753014,0.2431377,94926.0,94925.0,0.00105346]
[1745959753614,0.2441377,94926.0,94925.0,0.00105346]
[1745959754115,0.2441377,94926.0,94917.0,0.00158026]
[1745959754116,0.2106555,94918.0,94917.0,0.00158026]
[1745959754317,0.2106599,94916.0,94907.0,0.0322]
[1745959754611,0.4134644,94918.0,94907.0,0.0646]
[1745959754612,0.2106777,94908.0,94907.0,0.0646]
[1745959754810,0.2106777,94908.0,94896.0,0.21323094]
[1745959754811,0.2107021,94897.0,94896.0,0.21323094]
[1745959755023,0.5715021,94897.0,94896.0,0.21323094]
[1745959755215,0.5715021,94897.0,94896.0,0.22115612]
[1745959756021,0.6042021,94897.0,94896.0,0.22115612]
[1745959756410,0.6052021,94897.0,94896.0,0.22315612]
[1745959757015,0.6062021,94897.0,94896.0,0.22615612]
[1745959757621,0.7115781,94897.0,94896.0,0.22615612]
[1745959757922,0.7115781,94897.0,94896.0,0.21061838]
[1745959758120,0.8315781,94897.0,94896.0,0.21061838]
[1745959759127,0.6062021,94897.0,94896.0,0.20961838]
[1745959759424,0.6062021,94897.0,94896.0,0.01192518]
[1745959760023,0.6082021,94897.0,94896.0,0.00892518]
[1745959762821,0.6082021,94897.0,94896.0,8e-08]
[1745959766625,1.0226021,94897.0,94896.0,8e-08]
[1745959767125,1.0226021,94897.0,94896.0,0.00784262]
[1745959771535,1.0226021,94897.0,94896.0,0.03864262]
[1745959775042,1.0226021,94897.0,94896.0,0.06934262]
[1745959777033,1.0226021,94897.0,94896.0,0.10034262]
[1745959783039,0.2107221,94888.0,94885.0,0.00158079]
[1745959783241,0.5715221,94888.0,94885.0,0.00158079]
[1745959783641,0.5715221,94888.0,94887.0,0.21230512]
[1745959784054,0.5715221,94888.0,94887.0,0.2201805]
[1745959784432,0.5715221,94888.0,94887.0,0.2211805]
[1745959784841,0.5715221,94888.0,94887.0,0.0104562]
[1745959787033,0.5715221,94888.0,94887.0,0.0414562]
[1745959787244,0.2107243,94887.0,94886.0,0.0067054]
[1745959787439,0.2107265,94886.0,94885.0,0.00158079]
[1745959787640,0.2732265,94886.0,94885.0,0.00158079]
[1745959788645,0.2732265,94886.0,94885.0,0.00258079]
[1745959789147,0.2732265,94886.0,94885.0,0.01050867]
[1745959790135,0.2732265,94886.0,94885.0,0.01150867]
[1745959795355,0.3530112,94886.0,94885.0,0.01150867]
[1745959798347,0.2732265,94886.0,94885.0,0.01150867]
[1745959802252,0.2107265,94886.0,94885.0,0.22223737]
[1745959803156,0.2107265,94886.0,94885.0,0.28433737]
[1745959809350,0.2438265,94886.0,94885.0,0.28433737]
[1745959810764,0.2448265,94886.0,94885.0,0.28333737]
[1745959811153,0.2438265,94886.0,94885.0,0.28333737]
[1745959811354,0.2448265,94886.0,94885.0,0.28333737]
[1745959811764,0.2438265,94886.0,94885.0,0.28333737]
[1745959811968,0.2448265,94886.0,94885.0,0.28333737]
[1745959812467,0.2458265,94886.0,94885.0,0.28233737]
[1745959814169,0.2458265,94886.0,94885.0,0.28333737]
[1745959814463,0.2448265,94886.0,94885.0,0.04080867]
[1745959814656,0.2767265,94886.0,94885.0,0.01050867]
[1745959814853,0.3070265,94886.0,94885.0,7e-08]
[1745959815058,0.2107421,94879.0,94878.0,0.00803712]
[1745959815360,0.2107421,94879.0,94871.0,0.0305]
[1745959815361,0.2107509,94875.0,94871.0,0.0305]
[1745959816159,0.2435509,94875.0,94866.0,0.0321]
[1745959816462,0.2435509,94875.0,94868.0,0.0305]
[1745959817054,0.2435509,94875.0,94874.0,0.00111732]
[1745959817953,0.2435509,94875.0,94874.0,0.00211732]
[1745959818155,0.2435509,94875.0,94874.0,0.01000363]
[1745959818361,0.2435509,94875.0,94874.0,0.002]
[1745959819170,0.2435509,94875.0,94874.0,0.00994514]
[1745959819766,0.2435509,94875.0,94874.0,0.00894514]
[1745959819958,0.2485509,94875.0,94874.0,0.00994514]
[1745959820159,0.2485509,94875.0,94874.0,0.00894514]
[1745959820360,0.2535509,94875.0,94874.0,0.00994514]
[1745959820859,0.2565509,94875.0,94874.0,0.01094514]
[1745959821259,0.2485509,94875.0,94874.0,0.00894514]
[1745959821466,0.2515509,94875.0,94874.0,0.00994514]
[1745959821766,0.2505509,94875.0,94874.0,0.00994514]
[1745959822466,0.2495509,94875.0,94874.0,0.00994514]
[1745959823470,0.2495509,94875.0,94874.0,0.22069834]
[1745959823965,0.2167509,94875.0,94874.0,0.22069834]
[1745959824372,0.2167509,94875.0,94874.0,0.28609834]
[1745959824962,0.2167509,94875.0,94874.0,0.28509834]
[1745959825267,0.2167509,94875.0,94874.0,0.28609834]
[1745959826174,0.2137509,94875.0,94874.0,0.28509834]
[1745959826364,0.2137509,94875.0,94874.0,0.28609834]
[1745959826860,0.2137509,94875.0,94874.0,0.28509834]
[1745959827061,0.2117509,94875.0,94874.0,0.28509834]
[1745959828771,0.2117509,94875.0,94874.0,0.28409834]
[1745959828969,0.2117509,94875.0,94874.0,0.28509834]
[1745959832372,0.2117509,94875.0,94874.0,0.28609834]
[1745959834162,0.2107509,94875.0,94874.0,0.28709834]
[1745959834378,0.2107509,94875.0,94874.0,0.28509834]
[1745959834671,0.2107509,94875.0,94874.0,0.28609834]
[1745959836475,0.2107509,94875.0,94874.0,0.28509834]
[1745959836674,0.2107509,94875.0,94874.0,0.28609834]
[1745959838381,0.2107509,94875.0,94874.0,0.28509834]
[1745959838569,0.2107509,94875.0,94874.0,0.28609834]
[1745959839371,0.2107509,94875.0,94874.0,0.28509834]
[1745959839574,0.2107509,94875.0,94874.0,0.28609834]
[1745959841582,0.2107509,94875.0,94874.0,0.28509834]
[1745959841782,0.2107509,94875.0,94874.0,0.28609834]
[1745959842584,0.2117509,94875.0,94874.0,0.28509834]
[1745959842767,0.2117509,94875.0,94874.0,0.25249834]
[1745959842978,0.2117509,94875.0,94874.0,0.21969834]
[1745959843174,0.2117509,94875.0,94874.0,0.00894514]
[1745959843576,0.2743509,94875.0,94874.0,0.00794514]
[1745959843777,0.2743509,94875.0,94874.0,0.001]
[1745959844385,0.2107709,94866.0,94863.0,0.2107761]
[1745959844972,0.2733709,94866.0,94863.0,0.2107761]
[1745959845980,0.2753709,94866.0,94865.0,0.00205412]
[1745959846379,0.2753709,94866.0,94865.0,0.00105412]
[1745959846684,0.2753709,94866.0,94865.0,0.00205412]
[1745959846873,0.2773709,94866.0,94865.0,0.00305412]
[1745959847479,0.2773709,94866.0,94865.0,0.01099113]
[1745959849079,0.2773709,94866.0,94865.0,0.22176433]
[1745959850273,0.2773709,94866.0,94865.0,0.28396433]
[1745959853784,0.2465709,94866.0,94865.0,0.28396433]
[1745959854085,0.0358,94866.0,94865.0,0.28396433]
[1745959854982,0.2465709,94866.0,94865.0,0.28396433]
[1745959856983,0.0358,94866.0,94865.0,0.28396433]
[1745959859690,0.004,94866.0,94865.0,0.38937632]
[1745959859984,0.2419347,94883.0,94882.0,0.2107354]
[1745959860189,0.2728347,94883.0,94882.0,0.2107354]
[1745959860688,0.2728347,94883.0,94882.0,0.25245301]
[1745959861279,0.2788347,94883.0,94882.0,0.25345301]
[1745959862392,0.2838347,94883.0,94882.0,0.22305301]
[1745959862692,0.2838347,94883.0,94882.0,0.2127354]
[1745959862877,0.6446347,94883.0,94882.0,0.2127354]
[1745959863483,0.6446347,94883.0,94882.0,0.002]
[1745959868188,0.6446347,94883.0,94882.0,0.2127354]
[1745959868690,0.6446347,94883.0,94882.0,0.002]
[1745959869493,0.2838347,94883.0,94882.0,0.002]
[1745959872598,0.0526907,94870.0,94866.0,0.2755663]
[1745959872794,0.2107687,94867.0,94866.0,0.3282589]
[1745959873095,0.2107687,94867.0,94866.0,0.2755663]
[1745959874192,0.1453915,94869.0,94856.0,0.3608]
[1745959874193,0.2107709,94866.0,94856.0,0.3608]
[1745959874484,0.2107998,94853.0,94840.0,0.26729711]
[1745959874688,0.5715998,94853.0,94844.0,0.0527047]
[1745959875092,0.5715998,94853.0,94845.0,0.0527043]
[1745959875295,0.6030998,94853.0,94845.0,0.0527043]
[1745959875489,0.6030998,94853.0,94848.0,0.2108098]
[1745959875689,0.6040998,94853.0,94848.0,0.2108098]
[1745959876093,0.6050998,94853.0,94848.0,0.2108098]
[1745959876294,0.6050998,94853.0,94852.0,0.0015814]
[1745959877697,0.6351998,94853.0,94852.0,0.0015814]
[1745959878600,0.6351998,94853.0,94852.0,0.009603]
[1745959882402,0.6351998,94853.0,94852.0,0.220405]
[1745959882603,0.2743998,94853.0,94852.0,0.220405]
[1745959884701,0.2743998,94853.0,94852.0,0.222405]
[1745959885404,0.2733998,94853.0,94852.0,0.221405]
[1745959886095,0.2418998,94853.0,94852.0,0.221405]
[1745959886499,0.2418998,94853.0,94852.0,0.285105]
[1745959891403,0.2418998,94853.0,94852.0,0.010603]
[1745959891603,0.2418998,94853.0,94852.0,0.221405]
[1745959892598,0.2418998,94853.0,94852.0,0.252005]
[1745959896407,0.2418998,94853.0,94852.0,0.282605]
[1745959902801,0.2418998,94853.0,94852.0,0.252005]
[1745959902996,0.2744998,94853.0,94852.0,0.252005]
[1745959903998,0.2744998,94853.0,94852.0,0.314505]
[1745959909314,0.2744998,94853.0,94852.0,0.283105]
[1745959910314,0.2754998,94853.0,94852.0,0.284105]
[1745959911318,0.2744998,94853.0,94852.0,0.284105]
[1745959911518,0.2744998,94853.0,94852.0,0.285105]
[1745959913210,0.0311,94853.0,94852.0,0.285105]
[1745959913915,0.0301,94853.0,94852.0,0.316205]
[1745959914113,0.0301,94853.0,94852.0,0.317205]
[1745959914622,0.0301,94853.0,94852.0,0.316205]
[1745959914924,0.0301,94853.0,94852.0,0.317205]
[1745959915914,0.0311,94853.0,94852.0,0.318205]
[1745959916619,0.2428998,94853.0,94852.0,0.320205]
[1745959921214,0.0321,94853.0,94852.0,0.385005]
[1745959921716,0.2428998,94853.0,94852.0,0.385005]
[1745959933829,0.0321,94853.0,94852.0,0.385005]
[1745959934030,0.2428998,94853.0,94852.0,0.385005]
[1745959934334,0.2428998,94853.0,94852.0,0.045203]
[1745959934626,0.2736998,94853.0,94852.0,0.014603]
[1745959935433,0.2736998,94853.0,94852.0,0.225405]
[1745959948036,0.2726998,94853.0,94852.0,0.223405]
[1745959948224,0.2736998,94853.0,94852.0,0.224405]
[1745959948632,0.2726998,94853.0,94852.0,0.223405]
[1745959949333,0.2716998,94853.0,94852.0,0.221405]
[1745959949532,0.2726998,94853.0,94852.0,0.223405]
[1745959953836,0.2726998,94853.0,94852.0,0.222405]
[1745959954045,0.2736998,94853.0,94852.0,0.012603]
[1745959955327,0.2736998,94853.0,94852.0,0.223405]
[1745959957341,0.2736998,94853.0,94852.0,0.012603]
[1745959959030,0.2736998,94853.0,94852.0,0.223405]
[1745959960143,0.2736998,94853.0,94852.0,0.012603]
[1745959961442,0.2736998,94853.0,94852.0,0.223405]
[1745959962145,0.2736998,94853.0,94852.0,0.012603]
[1745959962341,0.2736998,94853.0,94852.0,0.223405]
[1745959962643,0.2736998,94853.0,94852.0,0.012603]
[1745959962844,0.2736998,94853.0,94852.0,0.223405]
[1745959966852,0.6344998,94853.0,94852.0,0.012603]
[1745959967335,0.2736998,94853.0,94852.0,0.012603]
[1745959969746,0.6344998,94853.0,94852.0,0.012603]